bitfinex-derivatives/quotes_SOLF0:USTF0_20241026
["timestamp","ask_amount","ask_price","bid_price","bid_amount"]
[1729922186487,15.96695789,166.9,166.83,3.0004]
[1729922187284,2.9997,166.87,166.78,15.51545789]
[1729922187489,5.84,166.86,166.78,15.51545789]
[1729922188388,8.8399,166.86,166.79,3.0011]
[1729922191188,5.84,166.86,166.81,3.0007]
[1729922193289,5.84,166.86,166.82,3.0005]
[1729922194289,5.84,166.86,166.83,3.0005]
[1729922194691,5.84,166.86,166.78,15.51545789]
[1729922195790,5.84,166.86,166.79,3.001]
[1729922196388,5.84,166.86,166.76,1.2984]
[1729922196389,3.0005,166.83,166.76,3.0016]
[1729922198595,12.96775789,166.84,166.73,12.96775789]
[1729922198794,3.0009,166.81,166.75,3.0019]
[1729922198996,8.8409,166.81,166.75,3.0019]
[1729922199494,155.5583978,166.88,166.75,12.96775789]
[1729922199699,8.8394,166.89,166.83,3.0004]
[1729922199897,5.84,166.89,166.8,12.96775789]
[1729922200700,12.96775789,166.92,166.82,12.96775789]
[1729922200898,5.84,166.91,166.82,12.96775789]
[1729922202398,8.8391,166.91,166.85,2.9999]
[1729922202995,2.9996,166.88,166.82,3.0006]
[1729922203399,12.96775789,166.9,166.79,12.96775789]
[1729922203591,5.84,166.91,166.82,12.96775789]
[1729922203795,5.84,166.91,166.84,3.0002]
[1729922205192,2.9994,166.9,166.84,3.0002]
[1729922210699,2.9994,166.89,166.84,3.0002]
[1729922211504,2.9997,166.88,166.82,15.96835789]
[1729922213396,12.96775789,166.9,166.79,16.25368444]
[1729922213599,12.96775789,166.9,166.81,3.0008]
[1729922213600,2.9999,166.87,166.81,3.0008]
[1729922214502,3.0,166.86,166.81,3.0008]
[1729922215507,3.0,166.86,166.8,3.0009]
[1729922215710,8.6,166.86,166.8,3.0009]
[1729922220815,8.6,166.86,166.79,12.96775789]
[1729922221007,8.6,166.86,166.81,3.0007]
[1729922221607,5.6,166.86,166.81,3.0007]
[1729922223415,8.6,166.86,166.81,3.0007]
[1729922223615,5.6,166.86,166.79,3.001]
[1729922223821,3.0001,166.85,166.79,12.96775789]
[1729922224419,3.0001,166.85,166.77,2.6054]
[1729922224615,3.0001,166.85,166.77,15.57315789]
[1729922224815,5.6,166.86,166.78,3.0012]
[1729922225014,3.0004,166.84,166.77,15.57315789]
[1729922225218,5.6,166.86,166.77,15.57315789]
[1729922226215,3.0001,166.85,166.79,3.001]
[1729922226418,3.0001,166.85,166.77,15.57315789]
[1729922226618,5.6,166.86,166.77,15.57315789]
[1729922227014,3.0001,166.85,166.8,3.0009]
[1729922227709,5.6,166.86,166.8,3.0009]
[1729922227917,18.56775789,166.86,166.77,3.0014]
[1729922228421,18.56775789,166.86,166.76,1.303]
[1729922228619,3.0006,166.83,166.78,3.0013]
[1729922230423,3.0006,166.83,166.79,3.0012]
[1729922230624,6.02713485,166.84,166.79,3.0012]
[1729922230817,3.0003,166.84,166.79,3.0012]
[1729922231423,3.03710543,166.85,166.77,12.96775789]
[1729922231619,6.03740543,166.85,166.8,3.0009]
[1729922232518,3.0003,166.84,166.8,3.0009]
[1729922232821,3.03710543,166.85,166.77,12.96775789]
[1729922233023,3.0005,166.83,166.78,3.0012]
[1729922233519,12.96775789,166.88,166.77,12.96775789]
[1729922233720,8.5998,166.87,166.82,3.0006]
[1729922233922,5.6,166.86,166.79,12.96775789]
[1729922235325,8.6,166.86,166.81,3.0008]
[1729922235717,5.6,166.86,166.79,12.96775789]
[1729922236324,5.6,166.86,166.76,6.58284104]
[1729922236519,12.96775789,166.85,166.76,1.303]
[1729922236719,16.00551767,166.85,166.76,1.303]
[1729922238218,3.0007,166.82,166.77,3.0015]
[1729922238419,8.3007,166.82,166.77,3.0015]
[1729922240218,5.3,166.82,166.77,15.96915789]
[1729922240524,5.3,166.82,166.77,12.96775789]
[1729922241321,5.3,166.82,166.78,3.30767506]
[1729922241628,5.3,166.82,166.77,12.96775789]
[1729922241828,5.3,166.82,166.78,3.30780332]
[1729922242124,5.3,166.82,166.77,12.96775789]
[1729922242329,5.3,166.82,166.78,6.30897123]
[1729922242522,5.3,166.82,166.78,3.0012]
[1729922244423,5.3,166.82,166.77,12.96775789]
[1729922244424,5.3,166.82,166.79,6.31257949]
[1729922244628,5.3,166.82,166.79,3.0012]
[1729922244927,5.3,166.82,166.76,1.303]
[1729922245129,3.001,166.81,166.77,3.31107838]
[1729922245428,3.001,166.81,166.78,3.31107838]
[1729922245729,5.3,166.82,166.76,1.303]
[1729922245929,5.3,166.82,166.77,11.61411331]
[1729922246121,5.3,166.82,166.78,3.31240945]
[1729922246329,5.3,166.82,166.79,3.31240945]
[1729922246528,5.3,166.82,166.78,8.30293316]
[1729922246833,5.3,166.82,166.79,3.31268843]
[1729922247122,5.3,166.82,166.78,11.30413316]
[1729922247325,3.0004,166.84,166.79,6.3146377]
[1729922247524,3.0004,166.84,166.78,8.30293316]
[1729922247525,5.3,166.84,166.8,3.3135377]
[1729922247725,5.3,166.84,166.78,8.30293316]
[1729922247923,5.3,166.84,166.8,3.001]
[1729922248927,3.0006,166.83,166.78,11.30423316]
[1729922249128,5.3,166.84,166.79,3.31431605]
[1729922249328,8.3003,166.84,166.8,3.31431605]
[1729922249532,8.3003,166.84,166.81,3.31431605]
[1729922249824,5.3,166.84,166.76,1.303]
[1729922250025,3.0008,166.82,166.77,21.4240168]
[1729922250234,3.0008,166.82,166.78,10.11968364]
[1729922250533,3.0008,166.82,166.79,3.31474551]
[1729922250832,3.0008,166.82,166.77,8.30293316]
[1729922251033,3.0008,166.82,166.8,3.31601844]
[1729922251327,3.0008,166.82,166.81,3.31680112]
[1729922254636,13.60293316,166.84,166.79,11.30413316]
[1729922254637,8.3004,166.84,166.79,11.30413316]
[1729922255033,8.3004,166.84,166.8,3.31795412]
[1729922255334,8.3004,166.84,166.81,3.31795412]
[1729922255635,8.3004,166.84,166.79,11.30413316]
[1729922255837,8.3004,166.84,166.8,3.31810754]
[1729922256037,8.3004,166.84,166.81,3.31810754]
[1729922256236,8.3004,166.84,166.79,11.30413316]
[1729922256437,8.3004,166.84,166.8,3.31851545]
[1729922256636,3.0005,166.83,166.81,3.31851545]
[1729922256834,3.0005,166.83,166.79,8.30293316]
[1729922257136,3.0005,166.83,166.8,3.31868911]
[1729922257440,3.0005,166.83,166.81,3.31868911]
[1729922257636,3.0005,166.83,166.79,8.30293316]
[1729922257834,3.0005,166.83,166.8,3.318768]
[1729922258035,3.0005,166.83,166.81,3.318768]
[1729922258235,3.0005,166.83,166.79,8.30293316]
[1729922258435,3.0005,166.83,166.8,3.31872534]
[1729922258633,3.0005,166.83,166.81,3.31872534]
[1729922258831,3.0005,166.83,166.79,8.30293316]
[1729922259039,3.0005,166.83,166.8,3.31872017]
[1729922259340,3.0005,166.83,166.81,3.31872017]
[1729922259535,3.0005,166.83,166.79,8.30293316]
[1729922259734,5.3,166.84,166.8,3.31866291]
[1729922259942,13.60293316,166.84,166.81,3.31866291]
[1729922260139,13.60293316,166.84,166.76,9.60593316]
[1729922260335,3.0009,166.81,166.77,5.31084365]
[1729922260541,3.0009,166.81,166.78,8.62990254]
[1729922260835,3.0009,166.81,166.79,3.31905889]
[1729922261140,3.0009,166.81,166.8,3.31905889]
[1729922261943,3.0009,166.81,166.76,12.60753316]
[1729922262242,13.60293316,166.84,166.77,10.13548684]
[1729922262441,3.0006,166.83,166.78,8.63435745]
[1729922262639,3.0006,166.83,166.79,3.32077224]
[1729922262841,3.0006,166.83,166.8,3.32077224]
[1729922263139,3.0006,166.83,166.78,11.30433316]
[1729922263330,3.0006,166.83,166.79,8.63289556]
[1729922263535,3.0006,166.83,166.8,3.32029742]
[1729922263736,3.0006,166.83,166.78,11.30433316]
[1729922263945,3.0006,166.83,166.79,8.63274824]
[1729922264138,3.0006,166.83,166.8,3.32015334]
[1729922264436,3.0006,166.83,166.78,11.30433316]
[1729922264631,3.0006,166.83,166.79,3.32182944]
[1729922264835,3.0006,166.83,166.8,3.32182944]
[1729922265042,3.0006,166.83,166.78,11.30433316]
[1729922265340,3.0006,166.83,166.79,3.32235482]
[1729922265537,3.0006,166.83,166.78,11.30433316]
[1729922265942,3.0006,166.83,166.79,8.63886917]
[1729922266143,3.0006,166.83,166.8,3.3225988]
[1729922266335,3.0006,166.83,166.79,5.31627037]
[1729922266539,3.0006,166.83,166.8,3.32263829]
[1729922266738,3.0006,166.83,166.79,5.31627037]
[1729922266932,3.0006,166.83,166.8,3.32265775]
[1729922267240,3.0006,166.83,166.79,5.31627037]
[1729922267439,3.0006,166.83,166.8,3.32287763]
[1729922267640,3.0006,166.83,166.79,5.31627037]
[1729922267840,3.0006,166.83,166.8,3.32288048]
[1729922268141,3.0006,166.83,166.79,5.31627037]
[1729922268341,3.0006,166.83,166.8,3.32290421]
[1729922268542,3.0006,166.83,166.79,5.31627037]
[1729922268750,3.0006,166.83,166.8,3.32312492]
[1729922268948,3.0006,166.83,166.79,5.31627037]
[1729922269139,3.0006,166.83,166.8,3.32312459]
[1729922269342,3.0006,166.83,166.79,5.31627037]
[1729922269539,3.0006,166.83,166.8,3.32308063]
[1729922269744,13.60293316,166.84,166.79,5.31627037]
[1729922270052,3.0009,166.81,166.8,3.32318676]
[1729922270650,11.30353316,166.83,166.8,3.32318676]
[1729922270844,11.30353316,166.83,166.78,11.30413316]
[1729922271143,11.30353316,166.83,166.79,3.32365286]
[1729922271450,11.30353316,166.83,166.8,3.32365286]
[1729922271643,11.30353316,166.83,166.78,11.30413316]
[1729922271844,11.30353316,166.83,166.79,8.64219585]
[1729922272141,11.30353316,166.83,166.8,3.32387373]
[1729922272338,11.30353316,166.83,166.78,11.30413316]
[1729922272542,11.30353316,166.83,166.79,8.64248862]
[1729922272746,11.30353316,166.83,166.78,11.30413316]
[1729922273049,11.30353316,166.83,166.79,8.64246009]
[1729922273250,3.0006,166.83,166.8,3.32388851]
[1729922273444,3.0006,166.83,166.78,11.30413316]
[1729922273641,3.0006,166.83,166.79,8.64330338]
[1729922273851,3.0006,166.83,166.8,3.32421285]
[1729922274046,3.0006,166.83,166.78,11.30413316]
[1729922274253,3.0006,166.83,166.79,8.64335851]
[1729922274552,3.0006,166.83,166.8,3.32423405]
[1729922274745,3.0006,166.83,166.81,3.32423405]
[1729922274945,13.60293316,166.84,166.78,8.30293316]
[1729922275148,8.05775978,166.85,166.8,3.001]
[1729922275344,5.02,166.85,166.81,3.32440639]
[1729922275549,5.02,166.85,166.82,3.32440639]
[1729922275751,5.02,166.85,166.79,8.30293316]
[1729922275951,8.0201,166.85,166.81,3.0008]
[1729922276147,8.0201,166.85,166.82,3.3251837]
[1729922276348,8.0201,166.85,166.81,3.0008]
[1729922276551,8.0201,166.85,166.82,3.3254833]
[1729922276747,3.0004,166.84,166.79,8.30293316]
[1729922276948,3.0004,166.84,166.8,8.64667216]
[1729922277252,3.0004,166.84,166.81,8.64667216]
[1729922277447,3.0004,166.84,166.82,3.32550848]
[1729922277648,3.0004,166.84,166.79,11.30393316]
[1729922277847,3.0004,166.84,166.8,8.64735326]
[1729922278055,3.0004,166.84,166.81,8.64735326]
[1729922278349,5.02,166.85,166.82,3.32577043]
[1729922278547,151.26289514,166.87,166.83,11.62870072]
[1729922278744,151.26289514,166.87,166.85,8.30293316]
[1729922279050,151.26289514,166.87,166.76,6.323]
[1729922279051,58.32,166.92,166.86,8.30293316]
[1729922279249,5.02,166.93,166.9,8.30293316]
[1729922279844,6.00226015,166.94,166.9,8.30293316]
[1729922279845,8.0186,166.94,166.9,8.30293316]
[1729922280752,2.9987,166.93,166.9,8.30293316]
[1729922281650,5.02,166.94,166.9,8.30293316]
[1729922282357,8.0185,166.94,166.84,5.02]
[1729922282554,8.30293316,166.93,166.84,5.02]
[1729922282862,8.30293316,166.93,166.87,8.30293316]
[1729922283055,8.30293316,166.93,166.88,3.32066156]
[1729922283251,8.30293316,166.93,166.87,8.30293316]
[1729922283453,8.30293316,166.93,166.88,3.32068791]
[1729922283758,2.9988,166.93,166.89,3.32013098]
[1729922283956,13.32293316,166.94,166.88,8.30293316]
[1729922284156,13.32293316,166.94,166.89,3.31991216]
[1729922284356,16.32143316,166.94,166.88,11.30243316]
[1729922284752,16.32143316,166.94,166.89,3.31898059]
[1729922284951,16.32143316,166.94,166.88,2.9995]
[1729922285156,16.32143316,166.94,166.89,3.31881883]
[1729922285357,16.32143316,166.94,166.88,11.30243316]
[1729922285558,16.32143316,166.94,166.89,3.31802636]
[1729922285764,16.32143316,166.94,166.88,11.30243316]
[1729922285958,16.32143316,166.94,166.89,3.31801446]
[1729922286163,16.32143316,166.94,166.88,11.30243316]
[1729922287157,2.9987,166.93,166.88,11.30243316]
[1729922290761,8.30293316,166.9,166.82,1.2727]
[1729922290965,8.30293316,166.9,166.84,8.30293316]
[1729922291159,8.30293316,166.9,166.85,3.31591627]
[1729922291160,13.32293316,166.9,166.85,3.31591627]
[1729922291463,13.32293316,166.9,166.84,8.30293316]
[1729922291665,16.32213316,166.9,166.85,3.31555141]
[1729922291959,16.32213316,166.9,166.84,11.30313316]
[1729922292165,16.32213316,166.9,166.85,3.31555637]
[1729922292364,16.32213316,166.9,166.84,11.30313316]
[1729922292566,16.32213316,166.9,166.85,3.31524249]
[1729922292755,16.32213316,166.9,166.84,11.30313316]
[1729922292958,16.32213316,166.9,166.85,3.31524304]
[1729922293154,16.32213316,166.9,166.84,11.30313316]
[1729922293355,16.32213316,166.9,166.85,3.31487707]
[1729922293563,16.32213316,166.9,166.84,11.30313316]
[1729922293765,8.0192,166.9,166.86,8.30293316]
[1729922295068,8.0192,166.9,166.85,3.0001]
[1729922295259,8.0192,166.9,166.85,11.30303316]
[1729922305372,5.02,166.9,166.87,2.9997]
[1729922305574,5.02,166.9,166.85,8.30293316]
[1729922306074,5.02,166.9,166.86,2.9999]
[1729922307072,8.0192,166.9,166.85,11.30303316]
[1729922312270,5.02,166.9,166.85,8.30293316]
[1729922312467,5.02,166.9,166.86,2.9999]
[1729922317081,5.02,166.9,166.86,11.30283316]
[1729922321779,5.02,166.9,166.86,2.9999]
[1729922324880,2.9994,166.89,166.84,3.0002]
[1729922325178,2.9994,166.89,166.85,8.30293316]
[1729922327983,8.0192,166.9,166.85,11.30303316]
[1729922333290,5.02,166.9,166.86,2.9999]
[1729922337190,5.02,166.9,166.86,11.30283316]
[1729922338396,5.02,166.9,166.87,3.32104763]
[1729922338590,5.02,166.9,166.86,11.30283316]
[1729922338791,5.02,166.9,166.87,3.3210458]
[1729922338990,5.02,166.9,166.86,11.30283316]
[1729922339191,2.999,166.91,166.87,3.32104234]
[1729922339389,2.999,166.91,166.86,11.30283316]
[1729922339588,2.999,166.91,166.87,3.32193296]
[1729922339791,2.999,166.91,166.86,11.30283316]
[1729922340087,2.999,166.91,166.87,3.3218682]
[1729922340295,2.999,166.91,166.86,11.30283316]
[1729922340489,2.999,166.91,166.87,3.32268112]
[1729922340796,2.999,166.91,166.86,11.30283316]
[1729922341097,2.999,166.91,166.87,3.32266127]
[1729922341296,15.98173316,166.92,166.87,2.9997]
[1729922341596,12.98293316,166.92,166.87,2.9997]
[1729922342399,12.98293316,166.92,166.88,3.32465702]
[1729922342598,2.999,166.91,166.86,11.30283316]
[1729922342798,2.999,166.91,166.87,3.32463953]
[1729922343096,2.999,166.91,166.88,3.32463953]
[1729922343293,2.999,166.91,166.86,11.30283316]
[1729922343510,2.999,166.91,166.87,8.64754903]
[1729922343792,2.999,166.91,166.88,3.32584568]
[1729922344099,2.999,166.91,166.86,11.30283316]
[1729922344298,2.999,166.91,166.87,8.65040616]
[1729922344499,2.999,166.91,166.88,3.32694453]
[1729922344696,2.999,166.91,166.86,11.30283316]
[1729922344898,2.999,166.91,166.87,8.65036089]
[1729922345197,2.999,166.91,166.88,3.32692712]
[1729922345395,2.999,166.91,166.89,3.32692712]
[1729922345596,2.999,166.91,166.86,11.30283316]
[1729922345799,2.999,166.91,166.87,8.65136917]
[1729922346100,2.999,166.91,166.88,3.3273149]
[1729922346298,2.999,166.91,166.89,3.3273149]
[1729922346597,2.999,166.91,166.86,11.30283316]
[1729922346798,2.999,166.91,166.87,8.65445557]
[1729922346998,2.999,166.91,166.88,8.65445557]
[1729922347196,2.999,166.91,166.89,3.32850193]
[1729922347592,2.999,166.91,166.9,3.32850193]
[1729922350598,2.999,166.91,166.86,11.30283316]
[1729922350796,2.999,166.91,166.87,1.50042727]
[1729922351003,2.999,166.91,166.88,8.6595804]
[1729922351203,2.999,166.91,166.89,8.6595804]
[1729922351405,2.999,166.91,166.9,3.33047292]
[1729922352497,7.6787,166.93,166.9,3.33047292]
[1729922352694,7.6787,166.93,166.91,3.33047292]
[1729922352901,7.6787,166.93,166.89,2.9993]
[1729922353203,7.6787,166.93,166.9,3.33067491]
[1729922353397,7.6787,166.93,166.91,3.33067491]
[1729922353598,7.6787,166.93,166.89,2.9993]
[1729922353800,7.6787,166.93,166.9,3.33074065]
[1729922354104,7.6787,166.93,166.91,3.33074065]
[1729922354105,2.9987,166.93,166.91,3.33074065]
[1729922354409,2.9987,166.93,166.89,2.9993]
[1729922354708,2.9987,166.93,166.9,3.33086482]
[1729922354907,2.9987,166.93,166.91,3.33086482]
[1729922355109,2.9987,166.93,166.89,2.9993]
[1729922355308,2.9987,166.93,166.9,3.33088994]
[1729922355505,2.9987,166.93,166.91,3.33088994]
[1729922355803,2.9987,166.93,166.88,11.30243316]
[1729922356000,2.9987,166.93,166.89,8.66121704]
[1729922356194,2.9987,166.93,166.9,3.33110238]
[1729922356397,2.9987,166.93,166.91,3.33110238]
[1729922356603,2.9987,166.93,166.88,11.30243316]
[1729922356807,2.9987,166.93,166.89,8.6619925]
[1729922357002,2.9987,166.93,166.9,8.6619925]
[1729922357203,2.9987,166.93,166.91,3.33140062]
[1729922357403,2.9987,166.93,166.88,11.30243316]
[1729922357604,2.9987,166.93,166.89,8.66295183]
[1729922357804,2.9987,166.93,166.9,8.66295183]
[1729922358003,2.9987,166.93,166.88,11.30243316]
[1729922358208,2.9987,166.93,166.89,8.66293184]
[1729922358512,2.9987,166.93,166.9,8.6634892]
[1729922358714,2.9987,166.93,166.91,3.33197625]
[1729922358909,11.30163316,166.93,166.88,11.30243316]
[1729922359107,11.30163316,166.93,166.89,8.66340408]
[1729922359409,11.30163316,166.93,166.9,8.66340408]
[1729922359708,11.30163316,166.93,166.91,3.33194351]
[1729922359902,11.30163316,166.93,166.88,2.9995]
[1729922359903,11.30163316,166.93,166.92,3.33199591]
[1729922360305,11.30163316,166.93,166.88,11.30243316]
[1729922360609,11.30163316,166.93,166.89,8.66280001]
[1729922360811,11.30163316,166.93,166.9,8.66280001]
[1729922361003,11.30163316,166.93,166.91,3.33171119]
[1729922361204,11.30163316,166.93,166.92,3.33171119]
[1729922361607,11.30163316,166.93,166.88,11.30243316]
[1729922361812,11.30163316,166.93,166.89,10.16173266]
[1729922362110,11.30163316,166.93,166.9,8.66137332]
[1729922362313,11.30163316,166.93,166.91,3.33116249]
[1729922362613,11.30163316,166.93,166.92,3.33116249]
[1729922363206,11.30163316,166.93,166.88,11.30243316]
[1729922363408,11.30163316,166.93,166.89,10.15984396]
[1729922363602,11.30163316,166.93,166.9,8.65948336]
[1729922363904,11.30163316,166.93,166.91,3.33043561]
[1729922364105,11.30163316,166.93,166.88,11.30243316]
[1729922364301,11.30163316,166.93,166.89,8.65952106]
[1729922364501,11.30163316,166.93,166.9,8.65952106]
[1729922364706,11.30163316,166.93,166.91,3.33045011]
[1729922364914,11.30163316,166.93,166.88,11.30243316]
[1729922365111,11.30163316,166.93,166.89,10.15748681]
[1729922365315,11.30163316,166.93,166.9,8.65712621]
[1729922365612,11.30163316,166.93,166.91,3.32952905]
[1729922365807,11.30163316,166.93,166.88,11.30243316]
[1729922366006,11.30163316,166.93,166.89,8.65648944]
[1729922366207,2.9988,166.92,166.9,8.65648944]
[1729922366408,2.9988,166.92,166.91,3.32928415]
[1729922370116,11.30143316,166.94,166.91,3.32928415]
[1729922370314,11.30143316,166.94,166.89,2.488]
[1729922370511,11.30143316,166.94,166.9,8.65567996]
[1729922370710,11.30143316,166.94,166.91,8.65525374]
[1729922370915,11.30143316,166.94,166.92,3.32897282]
[1729922371118,11.30143316,166.94,166.89,2.488]
[1729922371318,11.30143316,166.94,166.9,8.65430917]
[1729922371520,11.30143316,166.94,166.91,8.65430917]
[1729922371719,11.30143316,166.94,166.92,3.32844562]
[1729922372020,11.30143316,166.94,166.89,13.79023316]
[1729922372319,11.30143316,166.94,166.9,8.6531606]
[1729922372520,11.30143316,166.94,166.89,13.79023316]
[1729922372521,11.30143316,166.94,166.91,3.32800388]
[1729922372724,11.30143316,166.94,166.89,13.79023316]
[1729922372918,11.30143316,166.94,166.9,3.32793683]
[1729922373319,11.30143316,166.94,166.91,3.32793683]
[1729922373615,11.30143316,166.94,166.92,3.32793683]
[1729922373821,11.30143316,166.94,166.89,13.79023316]
[1729922374022,11.30143316,166.94,166.9,8.65279942]
[1729922374318,8.30293316,166.94,166.91,3.32786497]
[1729922374522,8.30293316,166.94,166.89,13.79023316]
[1729922374523,2.9987,166.93,166.92,3.32786497]
[1729922375225,11.30143316,166.94,166.92,3.32786497]
[1729922375415,11.30143316,166.94,166.89,13.79023316]
[1729922375616,11.30143316,166.94,166.9,8.65195134]
[1729922375828,11.30143316,166.94,166.91,3.3275388]
[1729922376121,11.30143316,166.94,166.92,3.3275388]
[1729922376320,11.30143316,166.94,166.89,13.79023316]
[1729922376722,11.30143316,166.94,166.9,3.32738516]
[1729922376915,11.30143316,166.94,166.91,3.32738516]
[1729922377113,11.30143316,166.94,166.92,3.32738516]
[1729922377316,11.30143316,166.94,166.89,13.79023316]
[1729922377520,11.30143316,166.94,166.9,8.6510831]
[1729922377713,11.30143316,166.94,166.91,3.32720488]
[1729922377923,11.30143316,166.94,166.92,3.32720488]
[1729922378120,11.30143316,166.94,166.89,13.79023316]
[1729922378321,11.30143316,166.94,166.9,8.64933593]
[1729922378516,11.30143316,166.94,166.91,8.64933593]
[1729922378725,11.30143316,166.94,166.92,3.32653291]
[1729922378926,11.30143316,166.94,166.89,13.79023316]
[1729922379114,11.30143316,166.94,166.9,8.64954965]
[1729922379318,11.30143316,166.94,166.91,8.64954965]
[1729922379516,11.30143316,166.94,166.92,3.32661511]
[1729922379828,11.30143316,166.94,166.89,13.79023316]
[1729922380017,11.30143316,166.94,166.9,8.64936724]
[1729922380219,11.30143316,166.94,166.91,3.32654495]
[1729922380420,11.30143316,166.94,166.92,3.32654495]
[1729922380726,11.30143316,166.94,166.89,13.79023316]
[1729922380918,11.30143316,166.94,166.9,8.64912853]
[1729922381121,11.30143316,166.94,166.91,3.32645314]
[1729922381323,11.30143316,166.94,166.92,3.32645314]
[1729922381530,11.30143316,166.94,166.89,13.79023316]
[1729922381825,11.30143316,166.94,166.9,8.64893129]
[1729922382122,11.30143316,166.94,166.91,3.32637728]
[1729922382427,11.30143316,166.94,166.92,3.32637728]
[1729922382631,11.30143316,166.94,166.89,13.79023316]
[1729922382927,11.30143316,166.94,166.9,8.64821256]
[1729922383128,11.30143316,166.94,166.91,3.32610086]
[1729922383326,11.30143316,166.94,166.92,3.32610086]
[1729922383516,11.30143316,166.94,166.89,13.79023316]
[1729922383828,11.30143316,166.94,166.9,8.64809654]
[1729922384026,11.30143316,166.94,166.89,13.79023316]
[1729922384329,11.30143316,166.94,166.9,8.64873891]
[1729922384522,11.30143316,166.94,166.91,3.32614674]
[1729922384721,8.30293316,166.94,166.92,3.32614674]
[1729922384920,11.30143316,166.94,166.89,10.79093316]
[1729922385128,11.30143316,166.94,166.9,8.64955622]
[1729922385323,11.30143316,166.94,166.91,3.32661763]
[1729922385629,11.30143316,166.94,166.92,3.32661763]
[1729922385816,11.30143316,166.94,166.89,13.79013316]
[1729922386021,11.30143316,166.94,166.9,8.64995997]
[1729922386216,11.30143316,166.94,166.91,8.64953328]
[1729922386427,8.30293316,166.94,166.92,3.32677291]
[1729922386631,8.30293316,166.94,166.89,13.79013316]
[1729922386825,8.30293316,166.94,166.9,8.64936565]
[1729922387025,8.30293316,166.94,166.91,8.64936565]
[1729922387329,8.30293316,166.94,166.92,3.32654434]
[1729922387526,8.30293316,166.94,166.89,13.79013316]
[1729922387724,8.30293316,166.94,166.9,3.32643413]
[1729922387933,8.30293316,166.94,166.91,8.64907908]
[1729922388127,8.30293316,166.94,166.9,2.9992]
[1729922388425,8.30293316,166.94,166.91,8.64858369]
[1729922388729,8.30293316,166.94,166.92,3.32631851]
[1729922389028,12.82293316,166.96,166.91,2.9989]
[1729922389229,4.52,166.96,166.92,3.3263866]
[1729922389431,12.82293316,166.96,166.9,8.30293316]
[1729922389626,12.82293316,166.96,166.91,8.64879359]
[1729922389828,12.82293316,166.96,166.92,3.32632433]
[1729922390130,12.82293316,166.96,166.9,8.30293316]
[1729922390330,12.82293316,166.96,166.92,2.9987]
[1729922391133,12.82293316,166.96,166.89,2.488]
[1729922391134,8.30293316,166.95,166.91,2.999]
[1729922391432,8.30293316,166.95,166.92,3.32684794]
[1729922391732,11.30123316,166.95,166.91,2.999]
[1729922391933,11.30123316,166.95,166.92,3.32717552]
[1729922392232,8.30293316,166.95,166.91,2.999]
[1729922392427,8.30293316,166.95,166.92,3.32723848]
[1729922392628,8.30293316,166.95,166.91,2.999]
[1729922392929,8.30293316,166.93,166.92,3.32723556]
[1729922393134,8.30293316,166.93,166.92,3.32723736]
[1729922395131,8.30293316,166.93,166.92,3.32744878]
[1729922398732,8.30293316,166.93,166.9,2.9992]
[1729922399033,8.30293316,166.93,166.91,3.32765656]
[1729922399235,3.05099999,166.93,166.92,3.32765656]
[1729922399538,3.05099999,166.93,166.86,2.9999]
[1729922399539,12.82293316,166.93,166.86,2.9999]
[1729922399728,8.30293316,166.9,166.87,10.15553062]
[1729922399932,8.30293316,166.9,166.88,8.65514375]
[1729922400128,8.30293316,166.9,166.89,3.32876659]
[1729922400340,11.30213316,166.9,166.89,3.32876659]
[1729922401640,2.9996,166.88,166.81,1.308]
[1729922401944,8.30293316,166.84,166.82,10.15938886]
[1729922402135,4.52,166.84,166.83,10.15938886]
[1729922402340,12.82293316,166.84,166.83,8.65882023]
[1729922402740,12.82293316,166.84,166.83,3.33018056]
[1729922404045,4.52,166.84,166.83,3.33018056]
[1729922404248,12.82293316,166.84,166.83,3.33018056]
[1729922404843,12.82293316,166.84,166.83,3.3013839]
[1729922405039,8.30293316,166.84,166.83,3.3013839]
[1729922405444,12.82293316,166.84,166.83,3.3013839]
[1729922406247,58.28,166.92,166.83,3.3013839]
[1729922406454,8.30293316,166.87,166.84,3.3013839]
[1729922406649,4.52,166.86,166.85,3.3013839]
[1729922406953,4.52,166.89,166.85,8.57809193]
[1729922407145,4.52,166.89,166.86,3.3013839]
[1729922407344,4.52,166.89,166.87,3.3013839]